bitfinex/quotes_SOLUSD_20250429
["timestamp","ask_amount","ask_price","bid_price","bid_amount"]
[1745966317139,0.14216157,146.47,146.44,98.60333296]
[1745966317340,0.28432314,146.47,146.44,98.60333296]
[1745966318920,26.0,146.49,146.46,14.37583296]
[1745966319323,0.28432314,146.49,146.46,96.87583296]
[1745966320130,0.28432314,146.49,146.46,82.5]
[1745966320330,14.6601561,146.49,146.46,82.5]
[1745966320944,0.28432314,146.47,146.46,82.5]
[1745966321148,14.6601561,146.47,146.46,82.5]
[1745966321515,33.30980496,146.47,146.44,1.7275]
[1745966323042,18.933972,146.47,146.44,16.10333296]
[1745966324835,0.28432314,146.47,146.44,16.10333296]
[1745966325022,0.14216157,146.49,146.46,14.37583296]
[1745966325223,13.9,146.5,146.48,14.37583296]
[1745966326345,13.9,146.5,146.47,14.37583296]
[1745966328433,13.9,146.5,146.48,14.37583296]
[1745966328747,13.9,146.5,146.48,96.87583296]
[1745966329430,13.9,146.5,146.49,14.37583296]
[1745966329755,0.063,146.51,146.49,15.92183296]
[1745966329958,0.063,146.51,146.5,14.37583296]
[1745966330544,0.063,146.51,146.5,98.24071217]
[1745966330857,0.063,146.51,146.5,112.61654513]
[1745966332655,0.063,146.52,146.51,6.3861]
[1745966332837,0.063,146.53,146.52,82.437]
[1745966333034,0.063,146.53,146.52,96.81283296]
[1745966334954,0.063,146.53,146.52,98.17746907]
[1745966336372,0.063,146.53,146.52,96.81283296]
[1745966336555,0.063,146.53,146.52,98.1774399]
[1745966339662,0.063,146.55,146.54,83.9752]
[1745966339838,0.063,146.55,146.54,99.99959846]
[1745966340537,0.03,146.57,146.56,6.5116]
[1745966340738,0.03,146.57,146.56,36.91156013]
[1745966340964,0.03,146.58,146.57,0.28432314]
[1745966341265,0.03,146.58,146.57,14.37583296]
[1745966346372,0.03,146.58,146.57,82.374]
[1745966346870,0.03,146.58,146.57,96.74983296]
[1745966347371,0.03,146.58,146.57,111.12566592]
[1745966348948,0.03,146.61,146.6,82.251]
[1745966349167,0.03,146.61,146.6,96.62683296]
[1745966349954,0.03,146.61,146.6,82.251]
[1745966351248,0.03,146.61,146.6,96.62683296]
[1745966352484,0.03,146.61,146.6,82.251]
[1745966352778,13.91,146.61,146.6,82.251]
[1745966357858,0.14216157,146.6,146.54,89.8731]
[1745966358059,14.37583296,146.59,146.55,14.37583296]
[1745966358280,14.6601561,146.6,146.56,14.37583296]
[1745966358582,14.6601561,146.6,146.56,96.62683296]
[1745966362988,13.91,146.61,146.58,14.37583296]
[1745966363159,13.91,146.61,146.58,96.62683296]
[1745966363661,28.28583296,146.61,146.58,82.251]
[1745966364883,13.91,146.61,146.58,82.251]
[1745966365069,28.28583296,146.61,146.58,82.251]
[1745966365271,13.91,146.61,146.58,96.62683296]
[1745966365475,28.28583296,146.61,146.58,82.251]
[1745966368085,14.6601561,146.6,146.58,82.251]
[1745966368271,14.6601561,146.59,146.58,82.251]
[1745966372890,14.6601561,146.59,146.55,96.62683296]
[1745966373093,0.28432314,146.59,146.56,14.37583296]
[1745966373889,13.91,146.61,146.58,14.37583296]
[1745966374194,13.91,146.61,146.58,82.251]
[1745966374696,28.28583296,146.61,146.58,82.251]
[1745966376667,14.37583296,146.6,146.58,82.251]
[1745966376993,14.6601561,146.59,146.58,82.251]
[1745966378600,14.6601561,146.59,146.55,96.62683296]
[1745966383599,0.28432314,146.59,146.55,96.62683296]
[1745966385201,14.37583296,146.58,146.55,82.251]
[1745966385886,0.28432314,146.58,146.55,96.62683296]
[1745966386503,0.28432314,146.59,146.56,14.37583296]
[1745966389604,14.6601561,146.59,146.55,96.62683296]
[1745966389793,14.37583296,146.58,146.55,82.251]
[1745966389996,14.6601561,146.59,146.55,96.62683296]
[1745966390194,13.86,146.58,146.55,96.62683296]
[1745966390588,13.86,146.58,146.56,14.37583296]
[1745966395705,13.86,146.58,146.55,96.62683296]
[1745966395897,13.86,146.58,146.55,82.251]
[1745966396411,13.86,146.58,146.55,96.62683296]
[1745966399803,14.37583296,146.59,146.55,96.62683296]
[1745966400009,14.37583296,146.59,146.55,82.251]
[1745966400913,0.28432314,146.59,146.55,96.62683296]
[1745966401324,14.6601561,146.59,146.55,96.62683296]
[1745966403518,14.6601561,146.59,146.55,82.251]
[1745966404519,14.6601561,146.59,146.55,96.62683296]
[1745966405219,0.28432314,146.59,146.55,96.62683296]
[1745966407610,0.28432314,146.59,146.55,82.251]
[1745966407828,14.6601561,146.59,146.55,82.251]
[1745966411028,0.28432314,146.59,146.55,82.251]
[1745966411730,14.6601561,146.59,146.55,82.251]
[1745966411927,14.37583296,146.57,146.55,82.251]
[1745966412447,14.37583296,146.56,146.55,82.251]
[1745966413030,40.37583296,146.58,146.55,82.251]
[1745966413528,26.0,146.58,146.55,96.62683296]
[1745966414327,40.37583296,146.58,146.55,82.251]
[1745966414833,10.64958728,146.6,146.57,14.37583296]
[1745966415009,10.64958728,146.6,146.59,14.37583296]
[1745966416527,0.03,146.61,146.59,14.37583296]
[1745966416712,0.03,146.61,146.6,14.37583296]
[1745966416911,0.03,146.61,146.6,96.62683296]
[1745966417114,0.03,146.61,146.6,82.251]
[1745966423435,0.31432314,146.61,146.6,82.251]
[1745966423646,0.14216157,146.6,146.57,82.251]
[1745966423813,28.21583296,146.59,146.57,82.251]
[1745966424018,13.84,146.59,146.57,82.251]
[1745966428922,14.6601561,146.58,146.54,14.37583296]
[1745966429933,28.21583296,146.59,146.55,14.37583296]
[1745966430357,14.37583296,146.58,146.54,14.37583296]
[1745966431949,14.37583296,146.58,146.53,82.251]
[1745966432135,14.37583296,146.58,146.54,14.37583296]
[1745966434431,14.37583296,146.58,146.54,96.62683296]
[1745966438742,13.84,146.59,146.54,96.62683296]
[1745966438942,14.37583296,146.58,146.54,96.62683296]
[1745966439144,13.84,146.59,146.54,96.62683296]
[1745966439336,14.37583296,146.58,146.54,96.62683296]
[1745966439961,13.84,146.59,146.54,96.62683296]
[1745966440140,28.21583296,146.59,146.55,14.37583296]
[1745966440340,13.84,146.59,146.54,96.62683296]
[1745966441036,14.37583296,146.58,146.54,96.62683296]
[1745966441764,13.84,146.59,146.57,14.37583296]
[1745966442059,13.84,146.59,146.57,96.62683296]
[1745966442266,13.84,146.59,146.57,82.251]
[1745966442558,28.21583296,146.59,146.57,82.251]
[1745966442767,14.37583296,146.58,146.57,82.251]
[1745966446271,28.19583296,146.58,146.57,82.251]
[1745966446442,13.82,146.58,146.57,82.251]
[1745966449972,13.82,146.58,146.57,96.62683296]
[1745966450643,0.03,146.61,146.57,96.62683296]
[1745966450972,0.03,146.61,146.6,14.37583296]
[1745966451177,0.03,146.61,146.6,96.62683296]
[1745966458248,0.03,146.61,146.6,97.9905967]
[1745966459779,0.03,146.61,146.6,98.27491984]
[1745966460453,0.03,146.61,146.6,96.62683296]
[1745966461350,0.03,146.61,146.6,82.251]
[1745966461667,14.40583296,146.61,146.6,82.251]
[1745966461879,14.6901561,146.61,146.6,82.251]
[1745966463973,14.6901561,146.61,146.55,14.37583296]
[1745966464171,14.37583296,146.59,146.55,96.62683296]
[1745966467079,14.37583296,146.6,146.55,96.62683296]
[1745966467276,14.6901561,146.61,146.57,14.37583296]
[1745966468879,0.31432314,146.61,146.57,14.37583296]
[1745966469059,14.6901561,146.61,146.57,14.37583296]
[1745966469476,14.6901561,146.61,146.57,96.62683296]
[1745966469883,14.37583296,146.6,146.57,82.251]
[1745966470085,14.37583296,146.59,146.57,82.251]
[1745966470262,59.33980496,146.61,146.57,82.251]
[1745966470467,14.37583296,146.6,146.57,82.251]
[1745966471604,28.17583296,146.6,146.57,82.251]
[1745966473791,14.37583296,146.59,146.57,82.251]
[1745966478092,14.37583296,146.58,146.57,82.251]
[1745966478285,14.6601561,146.59,146.57,82.251]
[1745966479793,28.4601561,146.59,146.57,82.251]
[1745966480486,14.37583296,146.58,146.57,82.251]
[1745966481990,0.14216157,146.53,146.52,0.063]
[1745966482172,46.96764339,146.53,146.52,0.063]
[1745966483781,28.4601561,146.53,146.52,0.063]
[1745966484096,47.10980496,146.53,146.52,0.063]
[1745966484598,61.48563792,146.53,146.52,0.063]
[1745966484976,47.10980496,146.53,146.52,0.063]
[1745966485372,44.64964886,146.52,146.51,0.063]
[1745966485572,59.02548182,146.52,146.51,0.063]
[1745966490402,73.68563792,146.52,146.51,0.063]
[1745966490585,75.05354929,146.52,146.51,0.063]
[1745966495084,49.05354929,146.52,146.51,0.063]
[1745966506927,0.28432314,146.51,146.5,0.063]
[1745966507218,55.03598906,146.51,146.5,0.063]
[1745966509822,26.14216157,146.49,146.48,0.063]
[1745966510004,40.6601561,146.49,146.48,0.063]
[1745966512037,0.14216157,146.49,146.48,0.063]
[1745966512214,14.51799453,146.49,146.48,0.063]
[1745966512525,14.6601561,146.49,146.48,0.063]
[1745966514124,28.4601561,146.49,146.48,0.063]
[1745966515457,47.10980496,146.49,146.48,0.063]
[1745966516106,47.10980496,146.49,146.45,82.314]
[1745966516107,73.54347635,146.46,146.45,82.314]
[1745966516423,73.68563792,146.46,146.45,0.063]
[1745966517126,0.28432314,146.45,146.44,0.063]
[1745966517323,44.64964886,146.44,146.43,0.063]
[1745966517622,87.20131478,146.44,146.43,0.063]
[1745966518720,54.4601561,146.44,146.43,0.063]
[1745966519300,68.83598906,146.44,146.43,0.063]
[1745966522417,87.48563792,146.44,146.43,0.063]
[1745966525929,87.48563792,146.44,146.42,0.063]
[1745966525930,0.28432314,146.43,146.42,0.063]
[1745966526119,14.6601561,146.43,146.42,0.063]
[1745966529722,33.30980496,146.43,146.42,0.063]
[1745966534637,14.6601561,146.43,146.42,0.063]
[1745966537147,33.30980496,146.43,146.42,0.063]
[1745966541950,38.933972,146.41,146.4,0.063]
[1745966542132,0.28432314,146.36,146.32,1.5113]
[1745966542452,14.37583296,146.33,146.32,1.5113]
[1745966543241,14.37583296,146.34,146.32,1.5113]
[1745966544032,13.78,146.35,146.32,1.5113]
[1745966544232,14.37583296,146.34,146.32,1.5113]
[1745966544451,14.37583296,146.33,146.32,1.5113]
[1745966547556,14.37583296,146.33,146.29,82.251]
[1745966547752,14.37583296,146.3,146.29,82.251]
[1745966548057,14.37583296,146.31,146.29,82.251]
[1745966550643,39.78,146.35,146.29,96.62683296]
[1745966550958,14.37583296,146.3,146.29,82.251]
[1745966552860,28.13583296,146.3,146.28,1.5928]
[1745966553065,14.37583296,146.29,146.28,0.03]
[1745966557562,14.37583296,146.29,146.28,82.281]
[1745966562680,28.13583296,146.3,146.28,82.281]
[1745966563364,14.37583296,146.29,146.28,82.281]
[1745966564171,28.13583296,146.3,146.28,82.281]
[1745966565862,14.37583296,146.29,146.28,82.281]
[1745966572980,13.76,146.3,146.28,82.281]
[1745966573178,14.37583296,146.29,146.28,82.281]
[1745966576194,28.13583296,146.3,146.28,82.281]
[1745966580394,13.76,146.3,146.28,82.281]
[1745966582192,13.76,146.3,146.28,96.65683296]
[1745966582496,13.76,146.3,146.29,14.37583296]
[1745966582695,13.76,146.3,146.29,16.00263296]
[1745966582895,13.76,146.3,146.29,1.6268]
[1745966583477,28.13583296,146.3,146.28,82.281]
[1745966583787,14.37583296,146.29,146.28,82.281]
[1745966603622,9.22108653,146.29,146.28,82.281]
[1745966606905,9.50540967,146.29,146.28,0.03]
[1745966607527,28.15505853,146.29,146.28,0.03]
[1745966608922,9.50540967,146.29,146.28,0.03]
[1745966609635,0.28432314,146.29,146.28,0.03]
[1745966609796,9.50540967,146.29,146.28,0.03]
[1745966612248,9.22108653,146.29,146.28,0.03]
[1745966613535,9.50540967,146.29,146.28,0.03]
[1745966617829,9.22108653,146.29,146.28,0.03]
[1745966618029,9.50540967,146.29,146.28,0.03]
[1745966618834,29.5229699,146.29,146.28,0.03]
[1745966619019,9.22108653,146.25,146.24,83.1228278]
[1745966619219,22.94108653,146.25,146.24,83.1228278]
[1745966620220,27.97494472,146.25,146.24,79.70056911]
[1745966621228,22.94108653,146.25,146.23,0.03]
[1745966621425,9.22108653,146.24,146.23,0.03]
[1745966624051,9.22108653,146.24,146.23,79.73056911]
[1745966629261,13.72,146.25,146.23,79.73056911]
[1745966629555,9.22108653,146.27,146.23,79.73056911]
[1745966629754,9.22108653,146.24,146.23,79.73056911]
[1745966629970,9.22108653,146.24,146.23,0.03]
[1745966630172,9.50540967,146.24,146.23,0.03]
[1745966630467,9.22108653,146.24,146.23,0.03]
[1745966631532,14.4170576,146.24,146.23,0.03]
[1745966639654,14.4170576,146.24,146.23,79.73056911]
[1745966640052,28.1370576,146.24,146.23,79.73056911]
[1745966641264,28.42138074,146.24,146.23,79.73056911]
[1745966641470,42.83843834,146.24,146.23,79.73056911]
[1745966642265,87.4880872,146.24,146.23,0.03]
[1745966642455,18.933972,146.23,146.22,0.03]
[1745966642646,14.4170576,146.18,146.17,79.73056911]
[1745966642846,28.1170576,146.18,146.17,79.73056911]
[1745966644461,28.40138074,146.18,146.17,79.73056911]
[1745966644670,0.28432314,146.16,146.14,0.03]
[1745966644850,14.70138074,146.15,146.14,0.03]
[1745966647176,33.3510296,146.15,146.14,0.03]
[1745966649258,274.6,146.18,146.14,0.03]
[1745966649474,14.4170576,146.15,146.14,0.03]
[1745966650263,14.70138074,146.15,146.14,0.03]
[1745966650775,33.3510296,146.15,146.14,0.03]
[1745966651769,59.3510296,146.15,146.14,0.03]
[1745966651969,35.00326411,146.15,146.14,0.03]
[1745966653374,34.71894097,146.15,146.14,0.03]
[1745966653674,60.71894097,146.15,146.14,0.03]
[1745966655461,61.00326411,146.15,146.14,0.03]
[1745966662295,59.3510296,146.15,146.14,0.03]
[1745966668865,73.0710296,146.15,146.14,0.03]
[1745966671490,0.28432314,146.13,146.09,46.40746911]
[1745966671687,14.4170576,146.12,146.09,46.40746911]
[1745966672365,14.4170576,146.11,146.09,46.40746911]
[1745966672565,13.7,146.1,146.09,46.40746911]
[1745966673285,28.1170576,146.1,146.09,44.76056911]
[1745966673672,13.7,146.1,146.09,44.76056911]
[1745966679191,13.7,146.1,146.09,59.17762671]
[1745966679500,13.7,146.1,146.09,65.36642671]
[1745966680098,13.7,146.1,146.09,50.94936911]
[1745966680674,13.7,146.1,146.09,44.76056911]
[1745966680896,28.1170576,146.1,146.09,44.76056911]
[1745966682180,0.28432314,146.09,146.08,0.03]
[1745966682490,14.70138074,146.09,146.08,0.03]
[1745966684078,47.7680872,146.09,146.08,0.03]
[1745966684274,75.13599857,146.09,146.08,0.03]
[1745966685305,59.3510296,146.09,146.08,0.03]
[1745966685485,28.1170576,146.1,146.08,0.03]
[1745966685803,14.4170576,146.09,146.08,0.03]
[1745966686905,13.7,146.1,146.08,0.03]
[1745966687107,14.4170576,146.09,146.08,0.03]
[1745966687486,14.70138074,146.09,146.08,0.03]
[1745966687889,33.3510296,146.09,146.08,0.03]
[1745966688291,47.7680872,146.09,146.08,0.03]
[1745966689824,33.3510296,146.09,146.08,0.03]
[1745966690313,59.3510296,146.09,146.08,0.03]
[1745966690510,73.7680872,146.09,146.08,0.03]
[1745966692412,48.05241034,146.09,146.08,0.03]
[1745966693920,44.79181043,146.05,146.03,0.03]
[1745966694115,32.49181043,146.04,146.03,0.03]
[1745966694327,46.90886803,146.04,146.03,0.03]
[1745966695599,47.0510296,146.04,146.03,0.03]
[1745966700417,13.7,146.04,146.03,0.03]
[1745966700601,14.4170576,146.07,146.03,14.4470576]
[1745966700799,13.7,146.06,146.03,59.20762671]
[1745966700998,28.1170576,146.06,146.03,44.79056911]
[1745966703238,13.7,146.06,146.05,14.4170576]
[1745966703521,13.68,146.08,146.05,14.4170576]
[1745966703729,13.68,146.08,146.06,14.4170576]
[1745966703920,13.68,146.08,146.06,59.17762671]
[1745966704223,13.68,146.08,146.06,44.76056911]
[1745966704710,13.68,146.08,146.06,59.17762671]
[1745966708105,13.68,146.08,146.07,14.4170576]
[1745966708511,13.68,146.08,146.07,59.17762671]
[1745966709326,13.68,146.08,146.07,60.69882671]
[1745966710620,13.68,146.08,146.07,46.28176911]
[1745966710827,13.68,146.08,146.07,60.69882671]
[1745966713017,13.68,146.11,146.08,31.08056911]
[1745966713321,13.68,146.11,146.09,14.4170576]
[1745966714317,13.68,146.12,146.09,14.4170576]
[1745966716044,28.0970576,146.12,146.08,45.49762671]
[1745966716633,14.4170576,146.12,146.08,45.49762671]
[1745966716953,13.68,146.11,146.08,45.49762671]
[1745966718330,28.0970576,146.11,146.08,31.08056911]
[1745966718644,28.0970576,146.11,146.08,45.49762671]
[1745966718645,13.68,146.11,146.08,45.49762671]
[1745966718943,13.68,146.11,146.1,14.4170576]
[1745966720042,14.4800576,146.14,146.1,14.4170576]
[1745966720225,13.743,146.14,146.12,14.4170576]
[1745966720544,13.743,146.14,146.13,14.4170576]
[1745966720843,13.743,146.14,146.13,45.49762671]
[1745966721835,0.063,146.14,146.13,47.07762671]
[1745966722031,0.063,146.14,146.13,47.36194985]
[1745966722237,13.68,146.17,146.16,30.95456911]
[1745966722433,0.063,146.18,146.16,45.37162671]
[1745966723448,0.063,146.18,146.17,14.70138074]
[1745966723641,0.063,146.18,146.17,16.06910562]
[1745966723841,0.063,146.18,146.17,17.58140562]
[1745966724345,0.063,146.18,146.17,16.21368074]
[1745966724657,0.063,146.18,146.17,15.9293576]
[1745966725444,0.063,146.18,146.17,16.21368074]
[1745966726067,0.063,146.18,146.17,42.21368074]
[1745966727647,0.063,146.21,146.2,30.89156911]
[1745966727851,0.063,146.21,146.2,45.30862671]
[1745966729269,0.063,146.21,146.2,30.89156911]
[1745966732477,0.063,146.21,146.2,45.30862671]
[1745966732956,0.063,146.21,146.2,45.59294985]
[1745966733348,13.743,146.23,146.21,30.82856911]
[1745966733546,13.743,146.23,146.22,14.4170576]
[1745966733750,13.743,146.23,146.22,45.24562671]
[1745966734279,0.063,146.23,146.22,45.24562671]
[1745966735069,0.063,146.23,146.22,45.52994985]
[1745966736371,0.063,146.23,146.22,45.24562671]
[1745966742053,14.4800576,146.23,146.22,30.82856911]
[1745966742585,14.76438074,146.23,146.22,30.82856911]
[1745966742753,14.4800576,146.23,146.22,30.82856911]
[1745966743142,40.4800576,146.23,146.19,30.82856911]
[1745966743347,14.4170576,146.21,146.19,30.82856911]
[1745966743563,13.66,146.2,146.19,30.82856911]
[1745966744757,28.0770576,146.2,146.19,30.82856911]
[1745966746867,28.0770576,146.2,146.15,14.4170576]
[1745966747063,14.4170576,146.16,146.15,30.82856911]
[1745966747578,14.4170576,146.18,146.15,30.82856911]
[1745966749977,14.4170576,146.17,146.15,30.82856911]
[1745966750146,14.4170576,146.18,146.15,30.82856911]
[1745966750347,14.4170576,146.17,146.15,30.82856911]
[1745966754288,14.4170576,146.16,146.15,30.82856911]
[1745966755882,14.4170576,146.17,146.15,30.82856911]
[1745966757881,0.14216157,146.19,146.15,30.82856911]
[1745966758382,14.4170576,146.17,146.15,30.82856911]
[1745966758679,13.66,146.2,146.15,45.24562671]
[1745966758882,13.66,146.2,146.16,14.4170576]
[1745966759187,14.4170576,146.19,146.15,45.24562671]
[1745966759482,14.4170576,146.19,146.15,30.82856911]
[1745966759889,14.4170576,146.18,146.15,30.82856911]
[1745966760074,14.4170576,146.17,146.15,30.82856911]
[1745966760891,14.4170576,146.16,146.15,30.82856911]
[1745966761967,14.55921917,146.16,146.15,30.82856911]
[1745966762182,29.11843834,146.16,146.15,30.82856911]
[1745966762362,0.14216157,146.15,146.12,0.03]
[1745966762684,14.4170576,146.13,146.12,0.03]
[1745966765479,28.0770576,146.14,146.12,0.03]
[1745966765667,13.66,146.14,146.12,30.85856911]
[1745966766883,13.66,146.14,146.13,14.4170576]
[1745966767197,13.66,146.14,146.13,45.52994985]
[1745966767368,13.64,146.18,146.13,45.52994985]
[1745966767563,13.64,146.18,146.15,14.4170576]
[1745966767969,13.64,146.18,146.16,14.4170576]
[1745966768189,13.64,146.18,146.16,45.24562671]
[1745966768580,13.64,146.18,146.16,30.82856911]
[1745966770272,28.0570576,146.18,146.16,30.82856911]
[1745966770998,14.4170576,146.17,146.16,30.82856911]
[1745966775385,14.4170576,146.17,146.13,30.82856911]
[1745966775592,14.4170576,146.14,146.13,30.82856911]
[1745966780210,14.55921917,146.14,146.12,0.03]
[1745966780380,28.0570576,146.13,146.12,0.03]
[1745966783203,28.0570576,146.13,146.12,30.85856911]
[1745966783501,28.19921917,146.13,146.12,30.85856911]
[1745966788386,48.35894097,146.13,146.12,0.03]
[1745966789909,33.94188337,146.13,146.12,0.03]
[1745966790119,48.35894097,146.13,146.12,0.03]
[1745966795711,29.70929211,146.13,146.12,0.03]
[1745966795897,28.34138074,146.13,146.12,0.03]
[1745966807155,46.9910296,146.13,146.12,0.03]
[1745966808941,28.34138074,146.13,146.12,0.03]
[1745966821255,46.9910296,146.13,146.12,0.03]
[1745966827639,28.34138074,146.13,146.12,0.03]
[1745966830167,46.9910296,146.13,146.12,0.03]
[1745966830365,47.27535274,146.13,146.09,30.85856911]
[1745966830563,40.55921917,146.1,146.09,0.03]
[1745966832957,54.17921917,146.1,146.09,0.03]
[1745966833346,54.32138074,146.1,146.09,0.03]
[1745966839671,39.90432314,146.1,146.09,0.03]
[1745966839971,54.0370576,146.1,146.09,0.03]
[1745966840589,13.62,146.1,146.09,0.03]
[1745966840752,10.64958728,146.14,146.09,46.93872671]
[1745966840952,24.26958728,146.14,146.11,14.4170576]
[1745966841155,13.62,146.14,146.11,14.4170576]
[1745966841384,13.62,146.14,146.1,14.4170576]
[1745966841676,13.62,146.14,146.11,14.4170576]
[1745966842170,13.62,146.14,146.12,14.4170576]
[1745966842372,13.62,146.14,146.12,45.24562671]
[1745966842668,13.62,146.14,146.12,30.82856911]
[1745966843978,13.62,146.14,146.12,45.24562671]
[1745966844276,13.62,146.14,146.13,14.4170576]
[1745966844481,13.62,146.14,146.12,45.24562671]
[1745966846382,13.62,146.14,146.13,14.4170576]
[1745966846758,13.62,146.14,146.12,45.24562671]
[1745966847995,13.62,146.14,146.12,30.82856911]
[1745966855885,28.0370576,146.14,146.12,30.82856911]
[1745966856085,14.4170576,146.13,146.12,30.82856911]
[1745966861210,13.62,146.14,146.12,30.82856911]
[1745966861211,28.0370576,146.14,146.12,30.82856911]
[1745966863103,14.4170576,146.13,146.12,30.82856911]
[1745966864712,13.62,146.14,146.12,30.82856911]
[1745966865088,13.62,146.14,146.12,45.24562671]
[1745966866419,13.62,146.14,146.13,14.4170576]
[1745966866725,13.6,146.17,146.14,30.82856911]
[1745966866898,13.6,146.17,146.14,32.37626911]
[1745966867089,13.6,146.17,146.16,14.4170576]
[1745966867295,13.6,146.17,146.15,14.4170576]
[1745966870412,13.6,146.17,146.14,46.79332671]
[1745966873417,28.0170576,146.17,146.14,32.37626911]
[1745966873910,14.4170576,146.16,146.14,32.37626911]
[1745966874120,14.4170576,146.16,146.14,30.82856911]
[1745966878923,13.6,146.17,146.14,30.82856911]
[1745966879110,28.0170576,146.17,146.14,30.82856911]
[1745966882002,14.4170576,146.16,146.14,30.82856911]
[1745966883133,14.4170576,146.15,146.14,30.82856911]
[1745966887930,28.0170576,146.17,146.14,30.82856911]
[1745966888507,14.4170576,146.16,146.14,30.82856911]
[1745966889029,28.0170576,146.17,146.14,30.82856911]
[1745966890230,14.4170576,146.16,146.14,30.82856911]
[1745966891034,13.6,146.17,146.14,30.82856911]
[1745966891216,14.4170576,146.16,146.14,30.82856911]
[1745966894737,13.6,146.17,146.14,45.24562671]
[1745966895635,13.6,146.17,146.14,30.82856911]
[1745966897230,13.6,146.17,146.14,45.24562671]
[1745966900550,13.6,146.17,146.14,30.82856911]
[1745966901055,13.6,146.17,146.14,45.24562671]
[1745966902222,13.6,146.17,146.14,30.82856911]
[1745966905939,22.83399085,146.17,146.14,30.82856911]
[1745966908058,13.6,146.17,146.15,9.23399085]
[1745966908367,13.6,146.17,146.14,30.82856911]
[1745966908368,13.6,146.17,146.14,40.06255996]
[1745966908563,13.6,146.17,146.15,9.51831399]
[1745966908736,0.063,146.18,146.17,17.22856911]
[1745966912552,0.063,146.18,146.17,17.51289225]
[1745966913438,0.063,146.18,146.17,17.22856911]
[1745966913642,9.29699085,146.18,146.17,17.22856911]
[1745966914861,46.51727739,146.18,146.1,7.8326]
[1745966915162,46.51727739,146.18,146.09,0.03]
[1745966915163,9.23399085,146.11,146.09,0.03]
[1745966915343,9.23399085,146.1,146.09,82.53]
[1745966915541,14.44401198,146.1,146.09,82.53]
[1745966916659,14.44401198,146.1,146.09,82.81432314]
[1745966921050,13.58,146.13,146.1,68.05598802]
[1745966921259,14.44401198,146.11,146.1,68.34031116]
[1745966926873,13.58,146.13,146.11,53.61197604]
[1745966927075,13.643,146.18,146.11,68.34031116]
[1745966927281,13.643,146.18,146.13,14.44401198]
[1745966927480,28.08701198,146.18,146.14,0.28432314]
[1745966927653,28.08701198,146.18,146.14,68.34031116]
[1745966927852,28.08701198,146.18,146.14,53.89629918]
[1745966927853,14.44401198,146.15,146.14,53.89629918]
[1745966928077,14.44401198,146.15,146.14,53.61197604]
[1745966936791,13.643,146.18,146.14,53.61197604]
[1745966937182,14.44401198,146.17,146.14,53.61197604]
[1745966937687,13.643,146.18,146.14,53.61197604]
[1745966937883,14.44401198,146.17,146.14,53.61197604]
[1745966941683,13.643,146.18,146.15,14.58617355]
[1745966942897,13.643,146.18,146.15,14.72833512]
[1745966943077,13.643,146.18,146.15,68.34031116]
[1745966944801,0.063,146.18,146.17,0.28432314]
[1745966944993,14.44401198,146.19,146.18,53.54897604]
[1745966946006,14.50701198,146.2,146.18,53.54897604]
[1745966947296,0.063,146.2,146.18,53.54897604]
[1745966951601,14.50701198,146.2,146.18,53.54897604]
[1745966953295,0.063,146.2,146.18,67.99298802]
[1745966957002,13.58,146.22,146.21,53.42297604]
[1745966957200,0.063,146.23,146.21,67.86698802]
[1745966959221,14.50701198,146.23,146.21,53.42297604]
[1745966959896,0.063,146.23,146.22,33.66230712]
[1745966960409,0.063,146.23,146.22,33.37798398]
[1745966965103,0.063,146.27,146.26,53.23397604]
[1745966975240,0.063,146.27,146.26,53.51829918]
[1745966975535,0.063,146.3,146.29,53.10797604]
[1745966979034,0.063,146.3,146.29,53.39229918]
[1745966980319,14.50701198,146.3,146.29,53.10797604]
[1745966980519,0.063,146.3,146.29,53.10797604]
[1745966981313,0.063,146.3,146.29,53.39229918]